bitfinex/quotes_ETHUSD_20230905
["timestamp","ask_amount","ask_price","bid_price","bid_amount"]
[1693887370630,2.304,1620.1,1620.0,23.3819633]
[1693887373272,2.304,1620.1,1620.0,23.20065156]
[1693887376675,2.304,1620.1,1620.0,24.80786866]
[1693887379207,2.304,1620.1,1620.0,6.28937866]
[1693887379484,2.304,1620.1,1620.0,18.63503866]
[1693887380483,2.304,1620.1,1620.0,24.80786866]
[1693887388589,2.304,1620.1,1620.0,20.3427108]
[1693887389593,2.304,1620.1,1620.0,11.10286654]
[1693887389594,3.64228134,1620.1,1620.0,11.10286654]
[1693887389768,3.64228134,1620.1,1620.0,4.93003654]
[1693887392666,3.64228134,1620.1,1620.0,6.05303654]
[1693887394199,3.64228134,1620.1,1620.0,12.72998911]
[1693887399705,2.304,1620.1,1620.0,12.72998911]
[1693887400801,2.304,1620.1,1620.0,21.96983337]
[1693887406002,2.304,1620.1,1620.0,15.91679683]
[1693887406304,2.304,1620.1,1620.0,22.08962683]
[1693887407007,2.304,1620.1,1620.0,23.21262683]
[1693887414321,2.304,1620.1,1620.0,23.40201781]
[1693887419930,0.101,1620.1,1620.0,23.40201781]
[1693887420130,0.101,1620.1,1620.0,33.07237364]
[1693887420289,0.101,1620.1,1620.0,45.82866396]
[1693887420496,0.101,1620.1,1620.0,45.34866396]
[1693887421022,8.30581339,1620.2,1620.1,27.99646449]
[1693887421224,8.30581339,1620.2,1620.1,42.2162655]
[1693887421389,8.30581339,1620.2,1620.1,38.87117953]
[1693887421589,8.30581339,1620.2,1620.1,45.39117953]
[1693887421795,8.30581339,1620.2,1620.1,46.51417953]
[1693887422001,8.30581339,1620.2,1620.1,39.99417953]
[1693887422209,8.30581339,1620.2,1620.1,31.84139278]
[1693887424130,8.30581339,1620.2,1620.1,33.44715155]
[1693887427240,8.30581339,1620.2,1620.1,27.31312303]
[1693887428807,8.30581339,1620.2,1620.1,19.12528555]
[1693887429008,8.30581339,1620.2,1620.1,21.14067303]
[1693887429238,8.30581339,1620.2,1620.1,27.31312303]
[1693887434116,8.20581339,1620.2,1620.1,27.31312303]
[1693887434316,8.20581339,1620.2,1620.1,31.78248708]
[1693887435319,8.20581339,1620.2,1620.1,38.30248708]
[1693887435652,8.20581339,1620.2,1620.1,38.78248708]
[1693887454286,8.20581339,1620.2,1620.1,37.17672831]
[1693887454486,8.20581339,1620.2,1620.1,38.77972699]
[1693887454806,0.0054274,1620.5,1620.1,49.57258095]
[1693887454987,0.0054274,1620.5,1620.4,11.18932398]
[1693887455306,0.0054274,1620.5,1620.4,39.35456398]
[1693887456987,0.0054274,1620.5,1620.4,40.47756398]
[1693887464397,0.0054274,1620.5,1620.4,38.87525426]
[1693887464615,0.0054274,1620.5,1620.4,43.57221185]
[1693887466815,0.0054274,1620.5,1620.4,44.07732632]
[1693887473118,0.0054274,1620.5,1620.4,45.00771391]
[1693887478925,0.0054274,1620.5,1620.4,46.61009048]
[1693887480836,0.0054274,1620.5,1620.4,45.00771391]
[1693887481137,7.4e-06,1620.5,1620.4,45.00771391]
[1693887497447,7.4e-06,1620.5,1620.4,46.93065363]
[1693887499541,7.4e-06,1620.5,1620.4,53.15341865]
[1693887499869,7.4e-06,1620.5,1620.4,55.84293439]
[1693887500421,7.4e-06,1620.5,1620.4,53.15341865]
[1693887500622,7.4e-06,1620.5,1620.4,55.84293439]
[1693887506324,7.4e-06,1620.5,1620.4,24.70856021]
[1693887506639,7.4e-06,1620.5,1620.4,20.62524426]
[1693887506837,7.4e-06,1620.5,1620.4,1.28514698]
[1693887507036,7.4e-06,1620.5,1620.3,6.17155]
[1693887507364,7.4e-06,1620.5,1620.4,0.96356078]
[1693887507550,1.0068383,1620.5,1620.4,7.13487078]
[1693887507747,1.0068383,1620.5,1620.4,13.30618078]
[1693887507941,1.0068383,1620.5,1620.3,6.17144]
[1693887508270,1.0068383,1620.5,1620.4,12.98505206]
[1693887508428,1.0068383,1620.5,1620.4,12.98483203]
[1693887508962,1.0068383,1620.5,1620.4,15.98483203]
[1693887510265,1.0068383,1620.5,1620.4,12.98483203]
[1693887510428,4.0068383,1620.5,1620.4,12.34262]
[1693887510833,4.0068383,1620.5,1620.4,12.98483203]
[1693887511143,4.0068383,1620.5,1620.4,19.15614203]
[1693887513470,4.0068383,1620.5,1620.4,18.51393]
[1693887514567,7.4e-06,1620.5,1620.4,22.22315629]
[1693887514754,7.4e-06,1620.5,1620.4,25.70394426]
[1693887515843,7.4e-06,1620.5,1620.4,26.34530319]
[1693887516879,7.4e-06,1620.5,1620.4,27.30731899]
[1693887519378,7.4e-06,1620.5,1620.4,26.66596006]
[1693887519680,7.4e-06,1620.5,1620.4,27.30735]
[1693887520767,7.4e-06,1620.5,1620.4,26.66596006]
[1693887531407,7.4e-06,1620.5,1620.4,27.94867706]
[1693887531704,7.4e-06,1620.5,1620.4,26.66596006]
[1693887532118,7.4e-06,1620.5,1620.4,27.94867706]
[1693887542119,7.4e-06,1620.5,1620.4,26.98666126]
[1693887549435,7.4e-06,1620.5,1620.4,28.59064393]
[1693887549636,7.4e-06,1620.5,1620.4,27.30792693]
[1693887560475,7.4e-06,1620.5,1620.4,28.59363121]
[1693887560977,1.0068383,1620.5,1620.4,24.40361695]
[1693887561141,3.1276383,1620.5,1620.4,22.79963428]
[1693887563866,3.1276383,1620.5,1620.4,23.76408764]
[1693887566184,6.1276383,1620.5,1620.4,23.76408764]
[1693887566356,6.1276383,1620.5,1620.4,19.47838336]
[1693887570282,6.1276383,1620.5,1620.4,13.30707336]
[1693887573386,6.1276383,1620.5,1620.4,7.77843221]
[1693887573576,6.1276383,1620.5,1620.3,7.77861221]
[1693887573783,0.61276383,1620.4,1620.3,6.81415885]
[1693887574250,2.92236383,1620.4,1620.3,6.81415885]
[1693887574455,2.92236383,1620.4,1620.3,0.64266885]
[1693887574689,2.92236383,1620.4,1620.3,6.81435885]
[1693887575889,2.92236383,1620.4,1620.3,6.17169]
[1693887578155,2.92236383,1620.4,1620.3,12.34338]
[1693887579188,2.92236383,1620.4,1620.3,6.17169]
[1693887581961,3.0,1620.3,1620.2,6.17188]
[1693887582156,4.32166738,1620.3,1620.2,6.17188]
[1693887582357,6.60126738,1620.3,1620.2,6.17188]
[1693887582583,5.2796,1620.3,1620.2,6.17188]
[1693887582791,5.2796,1620.3,1620.2,12.34395]
[1693887588160,5.2796,1620.3,1620.2,6.17188]
[1693887597207,5.2796,1620.3,1620.1,12.34456]
[1693887602404,5.2796,1620.3,1620.0,7.77984221]
[1693887602405,3.0,1620.1,1620.0,12.34542]
[1693887602607,3.0,1620.1,1620.0,12.34553]
[1693887602926,3.0,1620.1,1620.0,12.98819885]
[1693887603111,3.0,1620.1,1620.0,12.34553]
[1693887603310,3.0,1620.1,1620.0,12.98819885]
[1693887613699,3.0,1620.1,1620.0,13.95265221]
[1693887617124,3.0,1620.1,1620.0,13.30998336]
[1693887620845,3.0,1620.1,1620.0,13.95297647]
[1693887622745,3.0,1620.1,1620.0,13.30998336]
[1693887622964,3.0,1620.1,1620.0,13.95305828]
[1693887623822,3.0,1620.1,1620.0,13.95294672]
[1693887624411,3.53313,1620.1,1620.0,13.95294672]
[1693887625234,3.0,1620.1,1620.0,13.95294672]
[1693887626815,3.0,1620.1,1620.0,13.30998336]
[1693887630270,3.0,1620.1,1620.0,12.98892099]
[1693887631236,3.0,1620.1,1620.0,13.95337435]
[1693887632673,3.0,1620.1,1620.0,13.95662762]
[1693887632873,3.53313,1620.1,1620.0,13.95662762]
[1693887637042,3.53313,1620.1,1620.0,12.99217426]
[1693887637242,3.53313,1620.1,1620.0,6.17595327]
[1693887637661,5.86223,1620.1,1620.0,6.17595327]
[1693887638002,8.92924426,1620.1,1620.0,0.00325327]
[1693887638274,5.86223,1620.1,1620.0,0.00325327]
[1693887638647,5.86223,1620.1,1620.0,6.17608327]
[1693887638866,5.86223,1620.1,1620.0,18.52174327]
[1693887640272,5.86223,1620.1,1620.0,12.34891327]
[1693887641768,5.86223,1620.1,1620.0,18.52174327]
[1693887641962,5.3291,1620.1,1620.0,18.52174327]
[1693887643197,5.3291,1620.1,1620.0,12.34891327]
[1693887643569,5.3291,1620.1,1620.0,18.52174327]
[1693887643769,5.3291,1620.1,1620.0,19.16513426]
[1693887644669,3.0,1620.1,1620.0,19.16513426]
[1693887649401,3.5263,1620.1,1620.0,19.16513426]
[1693887650984,3.5263,1620.1,1620.0,12.98905099]
[1693887654810,3.5263,1620.1,1620.0,19.16188099]
[1693887655015,3.0,1620.1,1620.0,19.16188099]
[1693887660896,3.0,1620.1,1620.0,12.98905099]
[1693887678926,3.0,1620.1,1620.0,12.34566]
[1693887679125,3.0,1620.1,1620.0,12.98905099]
[1693887707176,3.0,1620.1,1620.0,6.81622099]
[1693887707377,3.5263,1620.1,1620.0,6.81622099]
[1693887708212,3.5263,1620.1,1620.0,12.98905099]
[1693887718890,3.0,1620.1,1620.0,12.98905099]
[1693887720023,3.0,1620.1,1620.0,19.16188099]
[1693887720226,3.0,1620.1,1620.0,20.28488099]
[1693887720434,3.0,1620.1,1620.0,20.60594336]
[1693887729358,3.0,1620.1,1620.0,21.25003111]
[1693887736236,3.0,1620.1,1620.0,20.12703111]
[1693887737253,3.51571,1620.1,1620.0,20.12703111]
[1693887738313,3.51571,1620.1,1620.0,13.95420111]
[1693887753333,3.51571,1620.1,1620.0,13.31011336]
[1693887753539,3.51571,1620.1,1620.0,13.95433074]
[1693887754741,3.51571,1620.1,1620.0,13.31011336]
[1693887763727,3.0,1620.1,1620.0,14.43311336]
[1693887765414,3.0,1620.1,1620.0,15.71881764]
[1693887766045,3.0,1620.1,1620.0,14.43311336]
[1693887767449,3.0,1620.1,1620.0,15.71881764]
[1693887767657,3.0,1620.1,1620.0,14.43311336]
[1693887787469,3.51571,1620.1,1620.0,14.43311336]
[1693887792039,3.51571,1620.1,1620.0,13.31011336]
[1693887792750,3.51571,1620.1,1620.0,14.59581764]
[1693887792938,3.51571,1620.1,1620.0,13.31011336]
[1693887794156,3.51571,1620.1,1620.0,19.48294336]
[1693887796681,3.0,1620.1,1620.0,19.48294336]
[1693887815980,3.0,1620.1,1620.0,19.16321929]
[1693887823413,3.0,1620.1,1620.0,21.72894336]
[1693887823607,3.0,1620.1,1620.0,23.01464764]
[1693887823900,3.0,1620.1,1620.0,22.05019428]
[1693887824108,3.0,1620.1,1620.0,25.27575535]
[1693887825064,3.0,1620.1,1620.0,26.24203836]
[1693887827068,3.0,1620.1,1620.0,25.11903836]
[1693887837232,3.0,1620.1,1620.0,26.24203836]
[1693887837919,3.0,1620.1,1620.0,26.74433877]
[1693887845341,3.0,1620.1,1620.0,25.45863449]
[1693887846030,3.0,1620.1,1620.0,26.74433877]
[1693887846217,3.0,1620.1,1620.0,25.45863449]
[1693887847140,3.0,1620.1,1620.0,24.33563449]
[1693887847745,3.0,1620.3,1620.0,24.33563449]
[1693887847909,2.136,1620.4,1620.2,2.08928301]
[1693887848248,2.136,1620.4,1620.3,20.28180773]
[1693887848446,2.086,1620.4,1620.3,20.28180773]
[1693887852052,2.086,1620.4,1620.3,19.63807]
[1693887855643,2.086,1620.4,1620.3,13.46638]
[1693887855850,2.086,1620.4,1620.3,12.34338]
[1693887856358,2.59460074,1620.4,1620.3,12.34338]
[1693887856546,3.0,1620.3,1620.2,6.17183]
[1693887856737,3.0,1620.3,1620.1,6.81603773]
[1693887856934,3.0,1620.3,1620.2,12.34414]
[1693887859971,3.0,1620.3,1620.2,6.17207]
[1693887860173,3.55946007,1620.3,1620.2,6.17207]
[1693887874897,5.76306007,1620.3,1620.2,6.17207]
[1693887885108,5.76306007,1620.3,1620.2,12.34414]
[1693887885313,3.0,1620.3,1620.2,12.34414]
[1693887885482,3.0,1620.3,1620.2,19.63921]
[1693887887591,3.0,1620.3,1620.2,13.46714]
[1693887888508,3.0,1620.3,1620.2,19.63921]
[1693887888697,3.0,1620.3,1620.2,13.46714]
[1693887892183,3.0,1620.3,1620.2,12.34414]
[1693887900427,3.0,1620.3,1620.2,12.98787773]
[1693887908452,3.52791,1620.3,1620.2,12.98787773]
[1693887909448,3.52791,1620.3,1620.2,12.34414]
[1693887916081,3.52791,1620.3,1620.1,10.14320074]
[1693887916289,3.52791,1620.3,1620.1,9.17691773]
[1693887916769,5.83021,1620.3,1620.1,9.17691773]
[1693887916971,0.583021,1620.2,1620.1,9.17691773]
[1693887917268,5.83021,1620.3,1620.1,9.17691773]
[1693887919565,5.83021,1620.3,1620.1,15.34936773]
[1693887932860,5.83021,1620.3,1620.2,0.00334454]
[1693887933073,5.83021,1620.3,1620.2,6.17541454]
[1693887953578,3.0,1620.1,1620.0,0.96628301]
[1693887953784,12.23946426,1620.1,1619.9,3.0]
[1693887953980,4.29096069,1620.0,1619.8,1.46621816]
[1693887954220,5.74267566,1620.0,1619.8,3.49993515]
[1693887954418,2.6298152,1620.0,1619.8,3.49993515]
[1693887954716,0.92586877,1620.0,1619.9,0.48431366]
[1693887956997,0.92586877,1620.0,1619.9,6.65753366]
[1693887957211,0.92586877,1620.0,1619.9,9.65753366]
[1693887957707,0.92586877,1620.0,1619.9,15.83075366]
[1693887958426,3.0,1620.1,1619.9,15.83075366]
[1693887959394,3.0,1620.1,1620.0,1.123]
[1693887959592,0.92575449,1620.2,1620.0,22.64149]
[1693887960228,3.0,1620.4,1620.0,22.64149]
[1693887960398,3.0,1620.4,1620.3,1.123]
[1693887960598,3.0,1620.4,1620.3,19.63807]
[1693887963227,3.0,1620.4,1620.3,13.46638]
[1693887966491,3.0,1620.4,1620.3,19.63807]
[1693887966908,3.0,1620.4,1620.3,13.46638]
[1693887967111,3.0,1620.4,1620.3,19.63807]
[1693887967515,3.0,1620.4,1620.3,13.46638]
[1693887967836,3.0,1620.4,1620.3,19.63807]
[1693887968435,3.0,1620.4,1620.3,20.11706932]
[1693887968602,3.0,1620.4,1620.3,13.94537932]
[1693887970749,3.0,1620.4,1620.3,7.77368932]
[1693887970907,3.0,1620.4,1620.3,13.94537932]
[1693887972039,3.0,1620.4,1620.3,6.65068932]
[1693887972206,3.0,1620.4,1620.3,12.82237932]
[1693887973340,3.0,1620.4,1620.3,18.99406932]
[1693887973836,3.0,1620.4,1620.3,12.82237932]
[1693887975450,3.0,1620.4,1620.3,6.65068932]
[1693887976224,3.0,1620.4,1620.3,12.82237932]
[1693887976423,3.0,1620.4,1620.3,6.65068932]
[1693887978738,3.0,1620.4,1620.3,12.82237932]
[1693887979966,3.0,1620.4,1620.3,6.65068932]
[1693887980268,3.0,1620.4,1620.3,12.82237932]
[1693887982338,3.39255905,1620.4,1620.3,12.82237932]
[1693887998789,3.39255905,1620.4,1620.3,6.65068932]
[1693887999669,5.56475905,1620.4,1620.3,6.65068932]
[1693888000801,3.39255905,1620.4,1620.3,12.82237932]
[1693888001111,3.0,1620.4,1620.3,12.82237932]
[1693888019922,9.2254042,1620.4,1620.3,12.82237932]
[1693888020618,3.0,1620.4,1620.3,12.82237932]
[1693888023018,3.0,1620.4,1620.3,13.94537932]
[1693888025326,3.0,1620.4,1620.3,20.11706932]
[1693888026317,3.0,1620.4,1620.3,13.94537932]
[1693888029644,3.0,1620.4,1620.3,20.11706932]
[1693888040361,3.0,1620.4,1620.3,13.94537932]
[1693888041851,3.0,1620.4,1620.3,20.11706932]
[1693888047978,5.2445,1620.4,1620.3,20.11706932]
[1693888049487,5.2445,1620.4,1620.3,13.94537932]
[1693888059195,5.2445,1620.4,1620.3,20.11706932]
[1693888060193,5.2445,1620.4,1620.3,13.94537932]
[1693888068810,3.0,1620.4,1620.3,23.73813496]
[1693888072011,3.0,1620.4,1620.3,23.09343316]
[1693888077177,3.0,1620.4,1620.3,23.21375534]
[1693888089429,3.0,1620.4,1620.3,20.2373915]
[1693888110581,3.0,1620.4,1620.3,20.8820933]
[1693888133983,3.0,1620.4,1620.3,21.84837631]
[1693888134600,3.0,1620.4,1620.3,21.20367451]
[1693888135408,3.0,1620.4,1620.3,21.84738772]
[1693888135808,3.0,1620.4,1620.3,21.20367451]
[1693888136308,3.0,1620.4,1620.3,21.84733075]
[1693888142534,3.0,1620.4,1620.3,21.20367451]
[1693888143413,3.0,1620.4,1620.3,21.84711787]
[1693888143916,3.0,1620.4,1620.3,21.20367451]
[1693888144326,3.0,1620.4,1620.3,21.8470836]
[1693888148537,3.0,1620.4,1620.3,21.36808428]
[1693888148828,3.0,1620.4,1620.3,21.92074555]
[1693888156544,3.0,1620.4,1620.3,20.95446254]
[1693888167215,3.0,1620.4,1620.3,21.92074555]
[1693888175081,3.0,1620.4,1620.3,21.27733646]
[1693888185318,3.0,1620.4,1620.3,22.56304074]
[1693888194624,3.0,1620.4,1620.3,21.27733646]
[1693888197900,3.0,1620.4,1620.3,22.56304074]
[1693888203028,2.2920074,1620.5,1620.3,28.94748513]
[1693888203216,7.4e-06,1620.5,1620.4,8.1555432]
[1693888203419,7.4e-06,1620.5,1620.4,26.98964854]
[1693888205350,7.4e-06,1620.5,1620.4,27.95433389]
[1693888205518,7.4e-06,1620.5,1620.4,31.92691796]
[1693888206708,7.4e-06,1620.5,1620.4,30.96223261]
[1693888207691,7.4e-06,1620.5,1620.4,31.92652044]
[1693888208131,7.4e-06,1620.5,1620.4,30.96223261]
[1693888208431,7.4e-06,1620.5,1620.4,31.92644077]
[1693888211332,7.4e-06,1620.5,1620.4,30.64073649]
[1693888211537,7.4e-06,1620.5,1620.4,27.57372223]
[1693888211751,7.4e-06,1620.5,1620.4,23.60113816]
[1693888213958,7.4e-06,1620.5,1620.4,24.31120845]
[1693888215019,7.4e-06,1620.5,1620.4,24.95380716]
[1693888215728,7.4e-06,1620.5,1620.4,25.44301845]
[1693888215929,7.4e-06,1620.5,1620.4,24.32001845]
[1693888216755,7.4e-06,1620.5,1620.4,23.35581029]
[1693888224187,7.4e-06,1620.5,1620.4,24.32001845]
[1693888226878,7.4e-06,1620.5,1620.4,25.44301845]
[1693888227058,7.4e-06,1620.5,1620.4,28.73305972]
[1693888232886,7.4e-06,1620.5,1620.4,28.09046101]
[1693888243609,7.4e-06,1620.5,1620.4,29.37616529]
[1693888247916,7.4e-06,1620.5,1620.4,28.41195713]
[1693888262356,7.4e-06,1620.5,1620.4,25.12191586]
[1693888277585,7.4e-06,1620.5,1620.4,26.7291477]
[1693888277887,7.4e-06,1620.5,1620.4,28.51045768]
[1693888279679,7.4e-06,1620.5,1620.4,29.79770742]
[1693888282572,7.4e-06,1620.5,1620.4,29.79764236]
[1693888282767,7.4e-06,1620.5,1620.4,32.72455992]
[1693888311653,7.4e-06,1620.5,1620.4,31.11732808]
[1693888311844,7.4e-06,1620.5,1620.4,32.72611592]
[1693888326389,7.4e-06,1620.5,1620.4,31.11732808]
[1693888336596,7.4e-06,1620.5,1620.4,32.72792542]
[1693888340663,7.4e-06,1620.5,1620.4,23.55661542]
[1693888340868,7.4e-06,1620.5,1620.4,19.34251318]
[1693888341418,7.4e-06,1620.5,1620.4,25.51382318]
[1693888342713,7.4e-06,1620.5,1620.4,23.90322584]
[1693888342930,7.4e-06,1620.5,1620.4,28.51355432]
[1693888345079,7.4e-06,1620.5,1620.4,26.90322584]
[1693888348723,7.4e-06,1620.5,1620.4,23.53811612]
[1693888349682,7.4e-06,1620.5,1620.4,24.03794016]
[1693888350427,7.4e-06,1620.5,1620.4,25.16094016]
[1693888384689,7.4e-06,1620.5,1620.4,26.46152481]
[1693888392745,7.4e-06,1620.5,1620.4,32.46764889]
[1693888392954,7.82810164,1620.6,1620.5,1.123]
[1693888393196,7.82810164,1620.6,1620.5,28.75788811]
[1693888393486,7.82810164,1620.6,1620.5,29.409286]
[1693888394187,1.64e-06,1620.6,1620.5,29.409286]
[1693888394352,1.64e-06,1620.6,1620.5,33.63176361]
[1693888395571,1.64e-06,1620.6,1620.5,35.5612799]
[1693888398460,3.0,1621.0,1620.5,35.5612799]
[1693888398662,3.0,1621.0,1620.9,1.76589629]
[1693888398990,3.0,1621.0,1620.9,23.34114055]
[1693888403356,3.0,1621.0,1620.9,23.9912778]
[1693888404499,3.0,1621.0,1620.9,23.34838151]
[1693888404881,3.0,1621.0,1620.9,23.9912778]
[1693888408474,3.0,1621.0,1620.9,23.34838151]
[1693888410423,8.71716727,1621.2,1621.0,1.123]
[1693888410630,8.71716727,1621.2,1621.1,21.57296426]
[1693888410958,8.71716727,1621.2,1621.1,31.70449448]
[1693888411096,8.16432537,1621.2,1621.1,31.70449448]
[1693888415531,8.16432537,1621.2,1621.1,32.82749448]
[1693888415735,8.16432537,1621.2,1621.1,35.28489291]
[1693888416747,8.16432537,1621.2,1621.1,36.20644505]
[1693888417246,8.16432537,1621.2,1621.1,36.52935742]
[1693888418054,8.16432537,1621.2,1621.1,37.19604249]
[1693888418564,7.4064508,1621.3,1621.1,37.19604249]
[1693888418863,0.101,1621.5,1621.3,30.8394]
[1693888419063,0.101,1621.5,1621.4,22.69251426]
[1693888419370,0.101,1621.5,1621.4,22.6255]
[1693888422269,0.101,1621.5,1621.4,26.33302623]
[1693888427146,0.101,1621.5,1621.4,27.29389256]
[1693888427365,0.101,1621.5,1621.4,31.38543708]
[1693888429283,0.028,1621.7,1621.5,1.123]
[1693888429438,0.028,1621.7,1621.6,29.49654976]
[1693888429639,0.028,1621.7,1621.6,32.49654976]
[1693888430185,0.007,1621.7,1621.6,32.49654976]
[1693888430339,0.101,1621.9,1621.6,39.20289985]
[1693888430543,0.101,1621.9,1621.8,27.38444103]
[1693888430783,0.101,1621.9,1621.8,30.45145529]
[1693888430946,0.101,1621.9,1621.8,33.45145529]
[1693888433179,0.101,1621.9,1621.8,34.11857793]
[1693888433380,0.101,1621.9,1621.8,37.55738487]
[1693888434640,0.101,1621.9,1621.8,38.83323763]
[1693888436594,0.101,1621.9,1621.8,37.2357166]
[1693888442263,0.101,1621.9,1621.8,38.19208829]
[1693888442657,0.101,1621.9,1621.8,38.17912038]
[1693888443407,0.101,1621.9,1621.8,39.13546335]
[1693888444213,0.101,1621.9,1621.8,39.63619423]
[1693888447433,0.101,1621.9,1621.8,38.67985126]
[1693888447731,0.101,1621.9,1621.8,39.63619492]
[1693888448233,0.101,1621.9,1621.8,38.67985126]
[1693888449611,2.3761,1621.9,1621.8,38.67985126]
[1693888453506,2.3761,1621.9,1621.8,40.27737229]
[1693888454532,2.3761,1621.9,1621.8,39.00151953]
[1693888455519,2.3761,1621.9,1621.8,34.61930881]
[1693888455720,2.3761,1621.9,1621.8,32.18948483]
[1693888456327,2.3761,1621.9,1621.8,30.91254128]
[1693888456523,2.3761,1621.9,1621.8,31.23171707]
[1693888457142,2.3761,1621.9,1621.8,32.18983823]
[1693888457443,2.3761,1621.9,1621.8,31.23171707]
[1693888460530,3.39883734,1621.9,1621.8,28.23171707]
[1693888460733,3.39883734,1621.9,1621.8,19.8044175]
[1693888460734,6.39883734,1621.9,1621.8,19.8044175]
[1693888461042,6.39883734,1621.9,1621.8,12.99908264]
[1693888464307,6.39883734,1621.9,1621.8,6.83310264]
[1693888464726,6.39883734,1621.9,1621.8,12.99908264]
[1693888465944,6.39883734,1621.9,1621.8,6.83310264]
[1693888466106,6.39883734,1621.9,1621.8,12.99908264]
[1693888466933,6.39883734,1621.9,1621.8,0.66712264]
[1693888468720,16.7544516,1621.9,1621.8,0.66712264]
[1693888469949,3.0,1621.7,1621.6,6.80586486]
[1693888470561,3.0,1621.7,1621.6,12.33325]
[1693888471052,3.0,1621.7,1621.5,7.76518709]
[1693888471254,3.0,1621.7,1621.5,13.93217709]
[1693888471440,5.2519,1621.7,1621.5,13.93217709]
[1693888471752,0.52519,1621.6,1621.5,12.33391]
[1693888478268,0.52519,1621.6,1621.5,13.02198241]
[1693888479467,5.2519,1621.7,1621.5,13.02198241]
[1693888480464,5.2519,1621.7,1621.5,19.18910241]
[1693888496720,5.2519,1621.7,1621.5,19.82845727]
[1693888497015,5.2519,1621.7,1621.5,19.18910241]
[1693888497419,5.2519,1621.7,1621.5,19.82845727]
[1693888497781,5.77709,1621.7,1621.5,19.82845727]
[1693888498094,5.77709,1621.7,1621.5,19.18910241]
[1693888498413,5.77709,1621.7,1621.5,19.82845727]
[1693888502505,5.77709,1621.7,1621.5,20.7873695]
[1693888503536,5.77709,1621.7,1621.5,14.6202495]
[1693888504638,5.77709,1621.7,1621.6,0.63935486]
[1693888505237,5.77709,1621.7,1621.6,1.34095767]
[1693888505837,5.77709,1621.7,1621.6,7.50769767]
[1693888513330,5.2519,1621.7,1621.6,7.50769767]
[1693888514440,5.2519,1621.7,1621.6,6.86834281]
[1693888515666,5.2519,1621.7,1621.6,7.50769767]
[1693888516329,5.2519,1621.7,1621.6,6.86834281]
[1693888517228,5.2019,1621.7,1621.6,6.86834281]
[1693888517757,5.2019,1621.7,1621.6,7.50769767]
[1693888521973,2.95,1621.7,1621.6,13.67443767]
[1693888524945,2.95,1621.7,1621.6,7.50769767]
[1693888532459,2.95,1621.7,1621.6,7.51590203]
[1693888532660,2.95,1621.7,1621.6,7.71337722]
[1693888536297,2.95,1621.7,1621.5,16.79894223]
[1693888536600,2.95,1621.7,1621.6,7.07373188]
[1693888538166,2.95,1621.7,1621.6,13.24047188]
[1693888538586,2.95,1621.7,1621.6,23.04515365]
[1693888538868,2.95,1621.7,1621.6,24.00406588]
[1693888540407,2.95,1621.7,1621.6,21.48912411]
[1693888544414,2.95,1621.7,1621.6,20.53021188]
[1693888546323,2.95,1621.7,1621.6,21.17263048]
[1693888548312,2.95,1621.7,1621.6,1.54941048]
[1693888548518,2.95,1621.7,1621.6,7.07373188]
[1693888549281,3.45882,1621.7,1621.6,0.90699188]
[1693888549942,3.45882,1621.7,1621.6,7.07373188]
[1693888550123,5.75212,1621.7,1621.6,7.07373188]
[1693888554180,5.75212,1621.7,1621.6,7.71615048]
[1693888554821,5.75212,1621.7,1621.6,7.07373188]
[1693888555429,5.75212,1621.7,1621.6,7.71615048]
[1693888557389,5.75212,1621.7,1621.6,7.07373188]
[1693888560331,5.75212,1621.7,1621.6,7.71615048]
[1693888560506,5.75212,1621.7,1621.6,7.07373188]
[1693888560711,5.75212,1621.7,1621.6,7.71615048]
[1693888560918,5.75212,1621.7,1621.6,7.07373188]
[1693888561119,5.75212,1621.7,1621.6,7.71615048]
[1693888563891,5.75212,1621.7,1621.6,7.07373188]
[1693888564942,5.75212,1621.7,1621.6,13.24047188]
[1693888567236,5.75212,1621.7,1621.6,13.88289048]
[1693888571042,5.75212,1621.7,1621.6,7.71615048]
[1693888571239,5.75212,1621.7,1621.6,13.88289048]
[1693888571632,5.75212,1621.7,1621.6,20.04963048]
[1693888573245,5.75212,1621.7,1621.6,13.88289048]
[1693888573538,5.2433,1621.7,1621.6,20.04963048]
[1693888573741,2.95,1621.7,1621.6,21.00854271]
[1693888575855,2.95,1621.7,1621.6,21.48912411]
[1693888579255,2.95,1621.7,1621.6,15.96468627]
[1693888579457,2.95,1621.7,1621.6,15.32238411]
[1693888579977,2.95,1621.7,1621.6,21.48912411]
[1693888580161,2.95,1621.7,1621.6,22.13141932]
[1693888580324,2.95,1621.7,1621.6,15.96467932]
[1693888580519,2.95,1621.7,1621.6,3.63119932]
[1693888580738,2.95,1621.7,1621.6,15.32238411]
[1693888581230,2.95,1621.7,1621.6,15.96467277]
[1693888581436,2.95,1621.7,1621.6,15.32238411]
[1693888581746,2.95,1621.7,1621.6,21.48912411]
[1693888583272,2.95,1621.7,1621.6,15.9646581]
[1693888583472,2.95,1621.7,1621.6,21.48912411]
[1693888583679,2.95,1621.7,1621.6,15.96466323]
[1693888589599,0.101,1621.9,1621.6,31.26037899]
[1693888589814,0.101,1621.9,1621.8,2.24612134]
[1693888589945,0.101,1621.9,1621.8,28.94741791]
[1693888590296,7.85127345,1622.0,1621.8,40.1655833]
[1693888590446,7.85127345,1622.0,1621.9,8.04562701]
[1693888590793,7.85127345,1622.0,1621.9,30.66542701]
[1693888591386,7.85127345,1622.0,1621.9,31.94892492]
[1693888591961,7.85127345,1622.0,1621.9,30.66542701]
[1693888594390,7.85127345,1622.0,1621.9,31.30570575]
[1693888594684,7.85127345,1622.0,1621.9,31.31307414]
[1693888595975,7.85127345,1622.0,1621.9,30.6727954]
[1693888598080,7.85127345,1622.0,1621.9,31.53338432]
[1693888601880,9.58351309,1622.2,1622.0,1.123]
[1693888602212,9.58351309,1622.2,1622.1,29.48877591]
[1693888602361,9.58351309,1622.2,1622.1,33.56235075]
[1693888602571,9.58351309,1622.2,1622.1,36.56970288]
[1693888608706,9.58351309,1622.2,1622.1,32.49612804]
[1693888611303,9.58351309,1622.2,1622.1,29.42911378]
[1693888611608,9.58351309,1622.2,1622.1,23.26427378]
[1693888612309,9.58351309,1622.2,1622.1,22.62487213]
[1693888613106,9.58351309,1622.2,1622.1,23.48693548]
[1693888613611,9.58351309,1622.2,1622.1,23.99228277]